[Event "45th FIDE Olympiad 2024"]
[Site "Budapest"]
[Date "2024.09.13"]
[Round "3.17"]
[White "Abdusattorov, Nodirbek"]
[Black "Brkic, Ante"]
[Result "1-0"]
[ECO "E11"]
[WhiteElo "2766"]
[BlackElo "2642"]
[Annotator "TA"]
[PlyCount "119"]
[EventDate "2024.09.05"]
[EventType "team-tourn"]
[EventCountry "HUN"]
[SourceTitle "playchess.com"]
[Source "ChessBase"]
[SourceQuality "1"]
[WhiteTeam "Uzbekistan"]
[BlackTeam "Croatia"]
[WhiteTeamCountry "UZB"]
[BlackTeamCountry "CRO"]
[TimeControl "40/5400+30:1800+30"]

{[%evp 44,119,-37,-42,-66,-67,-55,-70,-68,-42,0,0,0,0,0,0,0,0,0,0,18,0,79,75,81,86,78,90,90,75,90,69,155,136,123,98,223,193,237,237,235,228,229,229,249,231,273,273,246,246,314,314,322,314,434,338,468,434,457,458,431,412,572,575,522,456,452,436,578,599,651,643,727,690,694,647,987,958]} 1. d4 {[%emt 0:00:11]} Nf6 {[%emt 0:00:06]} 2. c4 {[%emt 0:00:09]} e6 {[%emt 0:00:06]} 3. Nf3 {[%emt 0:00:10]} d5 {[%emt 0:00:05]} 4. g3 {[%emt 0:00:11]} Bb4+ {[%emt 0:00:47]} 5. Bd2 {[%emt 0:01:21]} Be7 {[%emt 0:00:10]} 6. Bg2 {[%emt 0:00:08]} O-O {[%emt 0:00:12]} 7. O-O {[%emt 0:00:09]} Nbd7 {[%emt 0:00:13]} 8. Qc2 {[%emt 0:00:09]} c6 {[%emt 0:00:52]} 9. Rc1 {[%emt 0:00:08] E11: Bogo-Indian.} a5 {[%emt 0:01:55] 9...a5 scores better than 9...b6.} 10. a4 {[%emt 0:00:32]} h6 {[%emt 0:07:27]} 11. Bc3 $5 {[%emt 0:14:29][%mdl 4] An interesting side line.} b6 {[%emt 0:04:38]} 12. Nbd2 {[%emt 0:00:12]} Bb7 {[%emt 0:01:16]} 13. Rd1 {[%emt 0:07:01]} Qc7 {[%emt 0:12:19]} 14. b3 {[%emt 0:05:58]} Rfd8 {[%emt 0:01:11]} 15. Bb2 {[%emt 0:07:46]} Rac8 {[%emt 0:03:13]} 16. Rac1 {[%emt 0:00:14]} c5 {[%emt 0:16:27]} 17. cxd5 {[%emt 0:04:06]} Bxd5 {[%emt 0:02:17]} 18. e4 {[%emt 0:01:30]} Bc6 $146 {[%emt 0:08:07]} ({Predecessor:} 18... Bb7 19. Bh3 Nf8 20. Re1 Qb8 21. d5 exd5 22. Be5 Qa8 23. Nh4 dxe4 {½-½ Szymanski,R (2382)-Simal Moreira,L (2379) ESP-chT15 Gold email 2017 [6]}) 19. Re1 {[%emt 0:05:12]} Bb7 {[%emt 0:08:18]} 20. Bh3 {[%emt 0:00:49]} Nf8 {[%emt 0:15:08]} 21. d5 {[%emt 0:07:01]} exd5 {[%emt 0:00:42]} 22. Be5 {[%emt 0:22:21]} Qc6 {[%emt 0:00:23]} 23. Bxf6 {[%emt 0:02:32]} Bxf6 {[%emt 0:05:19]} 24. exd5 {[%emt 0:01:36]} Rxd5 {[%emt 0:00:29]} (24... Qxd5 {looks sharper.} 25. Bxc8 Rxc8 26. Re3 Bg5) 25. Bxc8 {[%emt 0:00:33]} Qxc8 {[%emt 0:00:05]} 26. Ne4 {[%emt 0:01:15]} Qf5 {[%emt 0:03:28]} 27. Nxf6+ {[%emt 0:02:20]} Qxf6 {[%emt 0:00:02]} 28. Re3 $1 {[%emt 0:00:42]} Ne6 {[%emt 0:06:22]} 29. Rce1 {[%emt 0:00:22]} g5 {[%emt 0:01:33]} 30. Qe4 {[%emt 0:03:10]} Kg7 {[%emt 0:00:30]} 31. h4 {[%emt 0:00:52]} Rd7 {[%emt 0:01:37]} 32. Qg4 {[%emt 0:02:09]} Bxf3 {[%emt 0:00:34]} (32... Rd5 $11 {remains equal.}) 33. Rxf3 $16 {[%emt 0:00:31]} Rd4 {[%emt 0:00:16]} 34. Qh5 {[%emt 0:04:05]} Qg6 {[%emt 0:00:19]} 35. Qxg6+ {[%emt 0:00:43]} Kxg6 {[%emt 0:00:01]} 36. h5+ $1 {[%emt 0:00:33]} Kg7 {[%emt 0:00:15]} 37. Kg2 {[%emt 0:00:38]} Rb4 {[%emt 0:01:45]} (37... Rd6 $14) 38. Rc3 {[%emt 0:00:49]} Kf6 {[%emt 0:00:15]} 39. Ree3 {[%emt 0:00:50]} b5 {[%emt 0:00:38]} (39... g4 $16 {was worth a try.} 40. f3 gxf3+ 41. Rxf3+ Kg5 42. Rxf7 Kxh5) 40. Rf3+ {[%emt 0:00:42]} Ke7 {[%emt 0:00:26]} 41. axb5 {[%emt 0:31:25]} Rxb5 {[%emt 0:01:33]} 42. Rce3 {[%emt 0:00:00]} Rb6 {[%emt 0:09:59]} 43. Rf5 {[%emt 0:00:00]} Kf8 {[%emt 0:00:17]} 44. Rd3 {[%emt 0:00:00]} Rb7 {[%emt 0:13:27]} 45. Rd6 {[%emt 0:00:00]} Kg7 {[%emt 0:00:07]} 46. Ra6 {[%emt 0:00:00]} Nd4 {[%emt 0:04:32]} 47. Rxc5 {[%emt 0:00:00]} Nxb3 {[%emt 0:00:02]} 48. Rd5 {[%emt 0:00:00]} (48. Rcc6 Re7 49. Rc8 (49. Rxh6 Nc5 $11) 49... Nd4 50. Rxa5 g4) 48... Rc7 {[%emt 0:01:04]} 49. Rd8 {[%emt 0:00:00]} Nc5 {[%emt 0:01:29]} 50. Raa8 {[%emt 0:00:00]} (50. Rxa5 Ne4 51. Ra4 Re7 $18) 50... Ne4 {[%emt 0:01:18]} 51. Rg8+ {[%emt 0:00:00]} ({Weaker is} 51. Rxa5 Rc2 $16) 51... Kf6 {[%emt 0:00:26]} 52. Ra6+ {[%emt 0:00:00]} ({Less strong is} 52. Rxa5 Rc2 53. Kf3 Nxf2 $18) 52... Ke7 {[%emt 0:00:12]} 53. Rxh6 {[%emt 0:00:00]} Rc2 {[%emt 0:00:57]} 54. Rhh8 {[%emt 0:00:00]} Nxf2 {[%emt 0:00:39]} 55. Kf3 {[%emt 0:00:00]} (55. Rxg5 $2 {too greedy.} Ne4+ 56. Kh3 Nxg5+ $19) 55... g4+ {[%emt 0:00:43]} 56. Ke3 {[%emt 0:00:00]} Nd1+ {[%emt 0:00:28]} 57. Kf4 {[%emt 0:00:00]} Rc4+ {[%emt 0:00:35]} 58. Kg5 {[%emt 0:00:00]} Rc5+ {[%emt 0:00:11]} 59. Kh4 {[%emt 0:00:00]} Nf2 {[%emt 0:00:31]} 60. Rc8 {[%emt 0:00:00]} 1-0

[Event "45th FIDE Olympiad 2024"]
[Site "Budapest"]
[Date "2024.09.13"]
[Round "3.18"]
[White "Martinovic, Sasa"]
[Black "Yakubboev, Nodirbek"]
[Result "1/2-1/2"]
[ECO "D38"]
[WhiteElo "2563"]
[BlackElo "2666"]
[Annotator "TA"]
[PlyCount "96"]
[EventDate "2024.09.05"]
[EventType "team-tourn"]
[EventCountry "HUN"]
[SourceTitle "playchess.com"]
[Source "ChessBase"]
[SourceQuality "1"]
[WhiteTeam "Croatia"]
[BlackTeam "Uzbekistan"]
[WhiteTeamCountry "CRO"]
[BlackTeamCountry "UZB"]
[TimeControl "40/5400+30:1800+30"]

{[%evp 17,96,6,25,16,28,24,48,19,16,0,0,0,6,2,22,0,5,-14,0,0,0,-5,0,0,33,37,129,62,68,75,136,60,67,62,61,0,0,0,0,-42,-34,-39,-45,-35,-31,-38,-31,-40,-14,-12,0,0,0,0,0,0,0,0,0,0,0,0,0,0,0,0,0,0,0,-8,-9,-10,-9,-10,0,0,0,-16,0,0,0]} 1. d4 {[%emt 0:00:02]} Nf6 {[%emt 0:00:10]} 2. c4 {[%emt 0:00:05]} e6 {[%emt 0:00:06]} 3. Nf3 {[%emt 0:00:05]} d5 {[%emt 0:00:07]} 4. Nc3 {[%emt 0:00:07]} Bb4 {[%emt 0:00:13]} 5. Qa4+ {[%emt 0:00:13]} Nc6 {[%emt 0:00:08]} 6. e3 {[%emt 0:00:04]} O-O {[%emt 0:00:05]} 7. Bd2 {[%emt 0:00:13]} Re8 {[%emt 0:01:10] D38: Queen's Gambit Declined: Ragozin Defence (4 Nf3 Bb4).} 8. a3 {[%emt 0:00:16]} Bf8 {[%emt 0:00:12]} 9. Be2 {[%emt 0:00:48]} h6 {[%emt 0:02:42]} 10. O-O {[%emt 0:00:40]} a6 {[%emt 0:02:07]} 11. Rad1 {[%emt 0:01:21]} dxc4 {[%emt 0:11:32]} 12. Bxc4 {[%emt 0:00:35]} Bd6 $146 {[%emt 0:00:21]} ({Predecessor:} 12... e5 13. Qb3 Qd7 14. dxe5 Nxe5 15. Nxe5 Rxe5 16. e4 b5 17. Be2 Qe6 18. Qxe6 Rxe6 {1-0 Materia,M (2269)-Spitzl,V (2346) EU-ch Online U2300 Final 2020 (4)}) 13. e4 {[%emt 0:06:33]} Bd7 {[%emt 0:00:15]} 14. Qc2 {[%emt 0:01:48]} e5 {[%emt 0:04:54]} 15. dxe5 {[%emt 0:03:15]} Nxe5 {[%emt 0:00:06]} 16. Nxe5 {[%emt 0:00:50]} Bxe5 {[%emt 0:00:09]} 17. h3 {[%emt 0:27:22]} b5 {[%emt 0:12:22]} 18. Ba2 {[%emt 0:00:06]} c5 {[%emt 0:00:55]} 19. Rfe1 {[%emt 0:05:59]} c4 {[%emt 0:14:09]} 20. Bb1 {[%emt 0:00:11]} Nh5 {[%emt 0:17:18]} 21. Be3 {[%emt 0:04:58]} Re6 {[%emt 0:04:34]} (21... Nf6 $14) 22. Rd5 {[%emt 0:08:11]} ({White should try} 22. Qd2 $16 Rd6 23. Qe2 Rxd1 24. Rxd1) 22... Qc7 $14 {[%emt 0:02:50]} 23. Rc5 {[%emt 0:07:51]} Rc6 {[%emt 0:01:12] [#]} (23... Qb7 $142) 24. Nd5 {[%emt 0:01:38]} (24. Rxe5 $1 $16 Qxe5 25. Rd1) 24... Qd6 $14 {[%emt 0:00:22]} 25. Rxc6 {[%emt 0:08:55]} Bxc6 {[%emt 0:00:01]} 26. Rd1 {[%emt 0:00:10]} (26. b3 $14) 26... Bxd5 $11 {[%emt 0:04:43]} 27. Rxd5 {[%emt 0:03:04]} Qe6 {[%emt 0:00:20]} 28. Qd2 {[%emt 0:05:49]} Nf6 {[%emt 0:01:28]} 29. Rd8+ $1 {[%emt 0:01:13]} Rxd8 {[%emt 0:00:08]} 30. Qxd8+ {[%emt 0:00:01]} Qe8 {[%emt 0:01:05]} 31. Qxe8+ {[%emt 0:04:29]} Nxe8 {[%emt 0:00:01]} 32. Bc1 {[%emt 0:00:03]} Nd6 {[%emt 0:08:18]} 33. Kf1 {[%emt 0:01:54]} f6 {[%emt 0:00:23]} 34. Ke2 {[%emt 0:00:20]} Bd4 {[%emt 0:00:35]} 35. Bc2 {[%emt 0:00:57]} Kf8 {[%emt 0:00:10]} 36. f3 {[%emt 0:02:14]} Ke7 {[%emt 0:00:42]} 37. b3 {[%emt 0:00:26]} Kd7 {[%emt 0:00:44]} 38. bxc4 {[%emt 0:01:44]} Nxc4 {[%emt 0:00:12]} 39. a4 {[%emt 0:01:16]} Kc6 {[%emt 0:02:33]} 40. axb5+ {[%emt 0:01:13]} axb5 {[%emt 0:02:25]} 41. Kd3 {[%emt 0:33:05]} Kc5 {[%emt 0:32:59]} 42. Bb3 {[%emt 0:00:00]} Bb2 {[%emt 0:00:00]} 43. Bxb2 {[%emt 0:00:00]} Nxb2+ {[%emt 0:00:00]} 44. Kc3 {[%emt 0:00:00]} Na4+ {[%emt 0:00:00]} 45. Kd3 {[%emt 0:00:00]} Nb2+ {[%emt 0:00:00]} 46. Kc3 {[%emt 0:00:00]} Na4+ {[%emt 0:00:00]} 47. Kd3 {[%emt 0:00:00]} Nb2+ {[%emt 0:00:20]} 48. Kc3 {[%emt 0:00:00]} Na4+ {[%emt 0:00:05]} 1/2-1/2

[Event "45th FIDE Olympiad 2024"]
[Site "Budapest"]
[Date "2024.09.13"]
[Round "3.19"]
[White "Sindarov, Javokhir"]
[Black "Livaic, Leon"]
[Result "1-0"]
[ECO "B07"]
[WhiteElo "2677"]
[BlackElo "2550"]
[Annotator "TA"]
[PlyCount "79"]
[EventDate "2024.09.05"]
[EventType "team-tourn"]
[EventCountry "HUN"]
[SourceTitle "playchess.com"]
[Source "ChessBase"]
[SourceQuality "1"]
[WhiteTeam "Uzbekistan"]
[BlackTeam "Croatia"]
[WhiteTeamCountry "UZB"]
[BlackTeamCountry "CRO"]
[TimeControl "40/5400+30:1800+30"]

{[%evp 9,79,0,21,10,20,10,8,9,40,7,21,20,28,25,28,26,52,16,65,11,40,35,86,68,80,83,93,44,45,41,62,39,37,49,101,113,102,101,115,114,116,124,118,109,138,138,164,178,163,158,237,227,348,383,299,331,390,390,374,365,354,293,381,406,457,463,633,557,2125,2259,29982,29983]} 1. e4 {[%emt 0:00:03]} d6 {[%emt 0:00:10]} 2. d4 {[%emt 0:01:20]} Nf6 {[%emt 0:00:05]} 3. Bd3 {[%emt 0:04:33]} e5 {[%emt 0:00:24]} 4. dxe5 {[%emt 0:03:55]} dxe5 {[%emt 0:00:08]} 5. Nf3 {[%emt 0:00:02]} Bd6 {[%emt 0:02:40]} 6. Nbd2 {[%emt 0:02:34]} Nbd7 {[%emt 0:08:55]} 7. O-O {[%emt 0:08:11]} O-O {[%emt 0:01:07]} 8. Nc4 {[%emt 0:05:03] The position is equal.} h6 {[%emt 0:12:12]} 9. Qe1 {[%emt 0:02:35]} b6 {[%emt 0:10:26]} 10. b4 {[%emt 0:01:12]} Re8 {[%emt 0:01:51]} 11. Bb2 {[%emt 0:07:29]} Nh5 {[%emt 0:02:42]} 12. g3 {[%emt 0:22:20]} Bb7 {[%emt 0:08:11]} 13. Qe2 {[%emt 0:05:15]} Nhf6 {[%emt 0:04:06]} (13... Bxb4 $11 14. Nfxe5 Nhf6) 14. Rfd1 {[%emt 0:02:57]} (14. a3 $14) 14... Qe7 {[%emt 0:03:32]} 15. a3 {[%emt 0:00:33]} Kh7 {[%emt 0:08:11]} (15... a5 $14) 16. Nfd2 {[%emt 0:02:57][%cal Bf3d2,Bd2f1,Bf1e3][%mdl 32] White is more active.} g6 {[%emt 0:01:33]} 17. Nxd6 {[%emt 0:02:23]} cxd6 {[%emt 0:01:31]} 18. Ba6 {[%emt 0:00:05]} ({Better is} 18. c4 $16) 18... Bxa6 $14 {[%emt 0:06:37]} 19. Qxa6 {[%emt 0:00:16]} Rac8 {[%emt 0:03:56]} 20. Qd3 {[%emt 0:10:03]} Qe6 {[%emt 0:01:39] Wards off Nc4} 21. Nf1 {[%emt 0:02:12][%cal Of2f3]} Qc4 {[%emt 0:04:23] White leaves nothing to chance now.} ({Black should try} 21... b5 $14) 22. Qxc4 $16 {[%emt 0:00:23]} (22. Qxd6 Qxc2 23. Qd2 Qxe4 $11) 22... Rxc4 {[%emt 0:00:06] [#]} 23. Ne3 {[%emt 0:00:27]} (23. Rxd6 Rxc2 24. Rd2 Rxd2 25. Nxd2 a5 26. bxa5 bxa5 $14) 23... Rc6 {[%emt 0:00:34]} 24. b5 {[%emt 0:02:11]} Rc7 {[%emt 0:06:01]} 25. f3 {[%emt 0:00:16]} (25. Rxd6 Nxe4 26. Rc6 Rec8 $14) 25... Re6 {[%emt 0:00:05]} 26. a4 {[%emt 0:00:26]} Nc5 {[%emt 0:01:53]} 27. a5 {[%emt 0:01:12]} Ne8 {[%emt 0:04:24]} 28. axb6 {[%emt 0:05:02]} axb6 {[%emt 0:00:05]} 29. Ra8 {[%emt 0:00:05] [#] And now Nd5 would win.} Nd7 {[%emt 0:02:35]} (29... Nf6 $16 {keeps fighting.} 30. g4 Kg7) 30. c4 {[%emt 0:01:38]} f5 {[%emt 0:02:32]} (30... Kg7 $142 31. Ba3 Rb7) 31. Nd5 $18 {[%emt 0:01:30]} ({But not} 31. exf5 gxf5 32. Nxf5 h5) 31... Rb7 {[%emt 0:00:11]} 32. Rda1 {[%emt 0:00:41]} Nef6 {[%emt 0:01:28]} 33. R1a7 {[%emt 0:00:05]} Rxa7 {[%emt 0:00:10]} 34. Rxa7 {[%emt 0:00:05]} Kg8 {[%emt 0:00:35]} 35. Ba3 {[%emt 0:00:20]} (35. exf5 gxf5 36. Ba3 Re8 37. Bxd6 Nxd5 $18) 35... fxe4 {[%emt 0:00:26]} 36. fxe4 {[%emt 0:00:04]} ({Weaker is} 36. Nc7 Re7 $14) 36... Nc5 {[%emt 0:01:28]} 37. Nxb6 {[%emt 0:00:48]} Ncxe4 {[%emt 0:00:36]} 38. Nc8 {[%emt 0:00:20] Strongly threatening b6.} Ng4 {[%emt 0:01:26]} 39. b6 {[%emt 0:00:25] b7 would kill now.} Rf6 {[%emt 0:00:13]} 40. Ne7+ {[%emt 0:00:07] Weighted Error Value: White=0.08 (flawless) /Black=0.53.  Mistake:       	White=2     	Black=5      Inaccurate:     	White=2     	Black=6      OK:         	White=16    	Black=6      Best:        	White=3     	Black=1} 1-0

[Event "45th FIDE Olympiad 2024"]
[Site "Budapest"]
[Date "2024.09.13"]
[Round "3.20"]
[White "Kozul, Zdenko"]
[Black "Vokhidov, Shamsiddin"]
[Result "0-1"]
[ECO "D37"]
[WhiteElo "2515"]
[BlackElo "2650"]
[Annotator "RC"]
[PlyCount "136"]
[EventDate "2024.09.05"]
[EventType "team-tourn"]
[EventCountry "HUN"]
[SourceTitle "playchess.com"]
[Source "ChessBase"]
[SourceQuality "1"]
[WhiteTeam "Croatia"]
[BlackTeam "Uzbekistan"]
[WhiteTeamCountry "CRO"]
[BlackTeamCountry "UZB"]
[TimeControl "40/5400+30:1800+30"]

1. d4 {[%emt 0:00:08]} Nf6 {[%emt 0:00:05]} 2. Nf3 {[%emt 0:00:09]} e6 {[%emt 0:00:38]} 3. c4 {[%emt 0:00:16]} d5 {[%emt 0:00:52]} 4. Nc3 {[%emt 0:01:37]} Be7 {[%emt 0:02:03]} 5. e3 {[%emt 0:14:24]} O-O {[%emt 0:00:51]} 6. a3 {[%emt 0:00:03]} b6 {[%emt 0:02:56]} 7. cxd5 {[%emt 0:01:36]} exd5 {[%emt 0:00:24]} 8. Be2 {[%emt 0:00:53]} c5 {[%emt 0:05:28]} 9. O-O {[%emt 0:00:22]} Bb7 {[%emt 0:00:30]} 10. b3 {[%emt 0:15:27]} Na6 {[%emt 0:00:50]} 11. Bb2 {[%emt 0:05:55]} Nc7 {[%emt 0:00:32]} 12. Qc2 {[%emt 0:07:44]} Ne6 {[%emt 0:05:29]} 13. Rad1 {[%emt 0:00:09]} Rc8 {[%emt 0:00:22]} 14. Qb1 {[%emt 0:02:55]} Bd6 {[%emt 0:03:32]} 15. dxc5 {[%emt 0:05:30]} bxc5 {[%emt 0:01:18]} 16. b4 {[%emt 0:00:27]} c4 {[%emt 0:05:35]} 17. Nb5 {[%emt 0:03:20]} Bb8 {[%emt 0:03:10]} 18. Qa1 {[%emt 0:01:24]} Ne4 {[%emt 0:09:59]} 19. Be5 {[%emt 0:13:44]} a6 {[%emt 0:05:02]} 20. Nc3 {[%emt 0:02:29]} Bxe5 {[%emt 0:05:17]} 21. Nxe5 {[%emt 0:00:07]} Nxc3 {[%emt 0:00:27]} 22. Qxc3 {[%emt 0:00:08]} Qf6 {[%emt 0:00:19]} 23. Bg4 {[%emt 0:02:52]} Rfe8 {[%emt 0:08:07]} 24. Rc1 {[%emt 0:06:11]} Qg5 {[%emt 0:00:55]} 25. f4 {[%emt 0:02:57]} Qe7 {[%emt 0:03:39]} 26. Nf3 {[%emt 0:01:44]} Rcd8 {[%emt 0:00:34]} 27. Rfe1 {[%emt 0:03:26]} Nc7 {[%emt 0:00:52]} 28. Nd4 {[%emt 0:01:52]} Nb5 {[%emt 0:00:59]} 29. Qa1 {[%emt 0:01:15]} Nd6 {[%emt 0:02:29]} 30. Bf3 {[%emt 0:00:10]} Qd7 {[%emt 0:00:52]} 31. Rcd1 {[%emt 0:02:08]} Re7 {[%emt 0:01:43]} 32. Rd2 {[%emt 0:01:08]} Rde8 {[%emt 0:00:29]} 33. Nc2 {[%emt 0:00:30]} Qf5 {[%emt 0:04:28]} 34. Red1 {[%emt 0:00:55]} h6 {[%emt 0:02:18]} 35. Qc1 {[%emt 0:02:33]} Qg6 {[%emt 0:04:10]} 36. Bxd5 {[%emt 0:00:58]} c3 {[%emt 0:03:00]} 37. Rd3 {[%emt 0:00:31]} Bxd5 {[%emt 0:04:34]} 38. Rxd5 {[%emt 0:00:06]} Ne4 {[%emt 0:00:07]} 39. Rd8 {[%emt 0:01:18]} Nd2 {[%emt 0:00:46]} 40. R1xd2 {[%emt 0:00:26]} cxd2 {[%emt 0:00:05]} 41. Qxd2 {[%emt 0:30:05]} Kh7 {[%emt 0:31:39]} 42. Rxe8 {[%emt 0:00:00]} Rxe8 {[%emt 0:00:00]} 43. Qc3 {[%emt 0:00:00]} Qe4 {[%emt 0:00:00]} 44. Kf2 {[%emt 0:00:00]} Re6 {[%emt 0:00:00]} 45. Nd4 {[%emt 0:00:00]} Rg6 {[%emt 0:00:00]} 46. g3 {[%emt 0:00:00]} Qh1 {[%emt 0:00:00]} 47. Nf3 {[%emt 0:00:00]} Qd1 {[%emt 0:00:00]} 48. Qc4 {[%emt 0:00:00]} Rd6 {[%emt 0:00:00]} 49. Nd4 {[%emt 0:00:00]} Qh1 {[%emt 0:00:00]} 50. Qxf7 {[%emt 0:00:00]} Qxh2+ {[%emt 0:00:00]} 51. Kf3 {[%emt 0:00:00]} Rg6 {[%emt 0:00:00]} 52. Ne2 {[%emt 0:00:00]} Qh3 {[%emt 0:00:00]} 53. e4 {[%emt 0:00:43]} Rd6 {[%emt 0:02:39]} 54. Ke3 {[%emt 0:00:19]} Rd1 {[%emt 0:00:15]} 55. Qb3 {[%emt 0:03:19]} Re1 {[%emt 0:01:00]} 56. Kd2 {[%emt 0:00:51]} Qf1 {[%emt 0:00:44]} 57. Qc4 {[%emt 0:00:40]} Ra1 {[%emt 0:01:48]} 58. Qxa6 {[%emt 0:02:31]} Qf2 {[%emt 0:02:49]} 59. Qc4 {[%emt 0:00:32]} Qe1+ {[%emt 0:01:44]} 60. Ke3 {[%emt 0:00:35]} Rxa3+ {[%emt 0:00:09]} 61. Kd4 {[%emt 0:00:07]} Qd2+ {[%emt 0:01:25]} 62. Ke5 {[%emt 0:01:00]} Ra8 {[%emt 0:01:43]} 63. Nd4 {[%emt 0:00:24]} Re8+ {[%emt 0:00:41]} 64. Ne6 {[%emt 0:00:17]} Qb2+ {[%emt 0:00:41]} 65. Kd5 {[%emt 0:00:26]} Rb8 {[%emt 0:00:17]} 66. Qd4 {[%emt 0:01:15]} Qb3+ {[%emt 0:02:49]} 67. Kd6 {[%emt 0:00:30]} Qxg3 {[%emt 0:00:39]} 68. Qd5 {[%emt 0:00:35]} Rxb4 {[%emt 0:01:39]} 0-1

[Event "45th FIDE Olympiad 2024"]
[Site "Budapest"]
[Date "2024.09.13"]
[Round "3.21"]
[White "Lodici, Lorenzo"]
[Black "Giri, Anish"]
[Result "1-0"]
[ECO "E43"]
[WhiteElo "2556"]
[BlackElo "2724"]
[Annotator "TA"]
[PlyCount "61"]
[EventDate "2024.09.05"]
[EventType "team-tourn"]
[EventCountry "HUN"]
[SourceTitle "playchess.com"]
[Source "ChessBase"]
[SourceQuality "1"]
[WhiteTeam "Italy"]
[BlackTeam "Netherlands"]
[WhiteTeamCountry "ITA"]
[BlackTeamCountry "NED"]
[TimeControl "40/5400+30:1800+30"]

{[%evp 12,61,-61,-44,-63,-54,-52,-60,-51,-70,-68,-41,-43,-52,-47,-60,-63,-78,-80,-104,0,0,70,66,89,83,113,78,77,97,252,262,268,268,248,272,268,271,342,332,331,333,289,269,337,306,366,381,370,370,358,320]} 1. d4 {[%emt 0:00:03]} Nf6 {[%emt 0:00:22]} 2. c4 {[%emt 0:00:11]} e6 {[%emt 0:00:04]} 3. Nc3 {[%emt 0:00:04]} Bb4 {[%emt 0:01:41]} 4. e3 {[%emt 0:00:07]} b6 {[%emt 0:01:42]} 5. Bd3 {[%emt 0:09:47]} Bb7 {[%emt 0:01:20]} 6. Nge2 {[%emt 0:00:05]} Bxg2 {[%emt 0:20:38]} 7. Rg1 {[%emt 0:00:10]} Bf3 {[%emt 0:00:06]} 8. Rg3 {[%emt 0:00:04]} Bxc3+ {[%emt 0:01:05]} 9. bxc3 {[%emt 0:00:04]} Be4 {[%emt 0:00:04] Black is slightly better.} 10. Qc2 {[%emt 0:00:06]} Bxd3 {[%emt 0:05:34]} 11. Qxd3 {[%emt 0:00:05]} Nh5 {[%emt 0:00:25]} 12. Rh3 {[%emt 0:00:05]} g6 {[%emt 0:07:28]} 13. e4 {[%emt 0:00:07][%cal Be3e4,Be4e5][%mdl 32]} d6 {[%emt 0:00:33]} 14. Ng3 {[%emt 0:00:05]} Nxg3 {[%emt 0:00:35]} 15. Qxg3 {[%emt 0:00:03]} f6 {[%emt 0:09:29]} ({Better is} 15... h5 $17 16. Bg5 f6) 16. Bh6 $11 {[%emt 0:21:31]} Rg8 {[%emt 0:13:21] Repels Bg7} (16... Qe7 $11) 17. e5 $1 $14 {[%emt 0:04:25] White is much more active.} Nd7 {[%emt 0:00:09][%cal Rd6e5]} 18. O-O-O {[%emt 0:07:01]} (18. exd6 $6 cxd6 19. Qxd6 Qe7 $14) 18... Qe7 {[%emt 0:03:10] [#]} (18... dxe5 $2 19. dxe5 Qe7 (19... fxe5 $2 20. Bg5 $18) 20. exf6 Nxf6 21. Qe5 $18) (18... fxe5 $2 19. Bg5 Nf6 20. Qh4 (20. dxe5 Ne4 $16) (20. Qf3 e4 $18) 20... exd4 21. Bxf6 $18) 19. exf6 {[%emt 0:04:37]} Nxf6 {[%emt 0:07:27]} 20. Bg5 {[%emt 0:06:46] Hoping for Qf3.} Ne4 $2 {[%emt 0:00:08] This move loses the game for Black.} 21. Bxe7 $18 {[%emt 0:01:12]} Nxg3 {[%emt 0:00:04]} 22. fxg3 {[%emt 0:06:47]} ({Resist} 22. Rxh7 $6 Nf5 23. Bg5 Kf8 $18) (22. hxg3 Kxe7 23. Rxh7+ Kf6 $16) 22... Kxe7 {[%emt 0:00:04]} 23. Rxh7+ {[%emt 0:00:05][%mdl 4096] Endgame. KRR-KRR} Kd8 {[%emt 0:00:07]} 24. Rf1 {[%emt 0:01:55]} Kc8 {[%emt 0:00:06]} 25. Rff7 {[%emt 0:02:01]} Kb7 {[%emt 0:00:04]} 26. Rxc7+ {[%emt 0:00:04]} Ka6 {[%emt 0:00:01]} 27. Rhe7 {[%emt 0:04:08]} Rgf8 {[%emt 0:00:51]} 28. Kb2 {[%emt 0:00:19]} ({But not} 28. Rxe6 Rf2 29. h4 (29. Rxd6 Re8 $11) 29... g5 $18) 28... d5 {[%emt 0:05:11]} 29. Rxe6 {[%emt 0:01:14] White is winning.} dxc4 {[%emt 0:00:05]} 30. Rxc4 {[%emt 0:00:25]} Rf2+ {[%emt 0:00:02]} 31. Kb3 {[%emt 0:00:06] Weighted Error Value: White=0.02 (flawless) /Black=0.28 (precise) .  Mistake:       	---       	Black=3      Inaccurate:     	---       	Black=1      OK:         	White=12    	Black=11     Best:        	White=3     	---        Strong:       	White=1     	---} 1-0

[Event "45th FIDE Olympiad 2024"]
[Site "Budapest"]
[Date "2024.09.13"]
[Round "3.21"]
[White "Ferster, Fabian"]
[Black "Than, Min Hlaing"]
[Result "1-0"]
[ECO "B23"]
[WhiteElo "2184"]
[BlackElo "2121"]
[Annotator "RC"]
[PlyCount "43"]
[EventDate "2024.09.05"]
[EventType "team-tourn"]
[EventCountry "HUN"]
[SourceTitle "playchess.com"]
[Source "ChessBase"]
[SourceQuality "1"]
[WhiteTeam "Liechtenstein"]
[BlackTeam "Myanmar"]
[WhiteTeamCountry "LIE"]
[BlackTeamCountry "MYA"]
[TimeControl "40/5400+30:1800+30"]

1. e4 c5 2. Nc3 Nc6 3. Nge2 e5 4. Ng3 g6 5. Bc4 h5 6. d3 h4 7. Nf1 h3 8. g3 d6 9. Nd5 Bg7 10. c3 Nh6 11. Bxh6 Rxh6 12. Nfe3 Be6 13. O-O Qd7 14. a3 O-O-O 15. b4 f5 16. Qa4 f4 17. b5 fxe3 18. bxc6 e2 19. cxd7+ Bxd7 20. Qa5 exf1=Q+ 21. Rxf1 Kb8 22. Qxd8+ 1-0